bitfinex/quotes_SOLUSD_20250612
["timestamp","ask_amount","ask_price","bid_price","bid_amount"]
[1749711551604,0.28432314,159.32,159.29,8.87491205]
[1749711553202,0.28432314,159.32,159.24,27.5584]
[1749711553506,0.28432314,159.32,159.29,13.86040887]
[1749711554503,0.28432314,159.32,159.3,13.86040887]
[1749711555601,4.68005043,159.33,159.31,13.86040887]
[1749711555781,4.68005043,159.33,159.24,27.5584]
[1749711555782,14.14473201,159.32,159.24,27.5584]
[1749711555987,14.14473201,159.32,159.27,13.86040887]
[1749711555988,18.82478244,159.32,159.27,13.86040887]
[1749711556188,14.14473201,159.32,159.27,13.86040887]
[1749711556383,4.96437357,159.32,159.28,13.86040887]
[1749711557012,18.82478244,159.32,159.28,13.86040887]
[1749711557306,14.14473201,159.32,159.28,13.86040887]
[1749711557503,18.82478244,159.32,159.28,13.86040887]
[1749711557695,14.14473201,159.32,159.28,13.86040887]
[1749711557896,18.82478244,159.32,159.28,13.86040887]
[1749711558098,14.14473201,159.32,159.28,13.86040887]
[1749711558303,18.82478244,159.32,159.28,13.86040887]
[1749711558505,14.14473201,159.32,159.28,13.86040887]
[1749711558701,18.82478244,159.32,159.28,13.86040887]
[1749711558900,14.14473201,159.32,159.26,5.48]
[1749711559095,18.82478244,159.32,159.28,13.86040887]
[1749711559301,14.14473201,159.32,159.28,13.86040887]
[1749711560510,4.68819742,159.31,159.27,13.86040887]
[1749711561204,4.68819742,159.31,159.28,13.86040887]
[1749711562308,14.14473201,159.32,159.28,13.86040887]
[1749711562504,4.68999803,159.31,159.28,13.86040887]
[1749711562813,14.14473201,159.32,159.28,13.86040887]
[1749711563010,4.68987873,159.31,159.28,13.86040887]
[1749711563315,14.14473201,159.32,159.28,13.86040887]
[1749711563496,4.6910521,159.31,159.28,13.86040887]
[1749711563697,14.14473201,159.32,159.28,13.86040887]
[1749711563899,4.6909235,159.31,159.28,13.86040887]
[1749711564195,14.14473201,159.32,159.28,13.86040887]
[1749711564389,4.69175184,159.31,159.28,13.86040887]
[1749711564589,14.14473201,159.32,159.28,13.86040887]
[1749711564811,4.69165041,159.31,159.28,13.86040887]
[1749711565015,14.14473201,159.32,159.28,13.86040887]
[1749711565314,4.69164226,159.31,159.26,5.48]
[1749711565517,14.14473201,159.32,159.26,5.48]
[1749711565518,14.14473201,159.32,159.27,13.86040887]
[1749711565704,4.69189972,159.31,159.27,13.86040887]
[1749711566013,14.14473201,159.32,159.27,13.86040887]
[1749711566218,4.69189972,159.31,159.27,13.86040887]
[1749711566410,4.69189972,159.3,159.27,13.86040887]
[1749711566601,14.14473201,159.32,159.27,13.86040887]
[1749711566810,4.69224398,159.31,159.27,13.86040887]
[1749711567029,4.69224398,159.3,159.27,13.86040887]
[1749711567311,14.14473201,159.32,159.27,13.86040887]
[1749711567507,4.69234591,159.31,159.27,13.86040887]
[1749711567710,4.69234591,159.3,159.27,13.86040887]
[1749711568020,14.14473201,159.32,159.27,13.86040887]
[1749711568217,4.69239639,159.31,159.27,13.86040887]
[1749711568418,4.69239639,159.3,159.27,13.86040887]
[1749711568713,14.14473201,159.32,159.27,13.86040887]
[1749711568897,4.6923403,159.31,159.27,13.86040887]
[1749711569217,4.6923403,159.3,159.27,13.86040887]
[1749711569418,14.14473201,159.32,159.27,13.86040887]
[1749711569723,4.69218817,159.31,159.27,13.86040887]
[1749711569936,14.14473201,159.32,159.27,13.86040887]
[1749711569937,4.69218817,159.3,159.27,13.86040887]
[1749711570219,14.14473201,159.32,159.26,5.48]
[1749711570220,14.14473201,159.29,159.26,5.48]
[1749711570400,4.69278657,159.28,159.26,5.48]
[1749711570604,13.86040887,159.29,159.26,5.48]
[1749711570792,4.69281155,159.28,159.26,5.48]
[1749711570991,13.86040887,159.29,159.26,5.48]
[1749711571194,18.55322041,159.28,159.26,5.48]
[1749711571391,13.86040887,159.28,159.26,5.48]
[1749711572620,14.14473201,159.27,159.26,5.48]
[1749711572821,18.83728003,159.27,159.26,5.48]
[1749711573307,13.85580076,159.27,159.26,5.48]
[1749711575326,18.85021767,159.27,159.26,5.48]
[1749711580228,18.85021767,159.27,159.22,13.87334651]
[1749711580421,14.15766965,159.27,159.22,13.87334651]
[1749711582632,0.28432314,159.27,159.23,13.87334651]
[1749711583129,0.28432314,159.27,159.24,13.87334651]
[1749711585946,0.28432314,159.27,159.23,13.87334651]
[1749711586237,14.15766965,159.27,159.23,13.87334651]
[1749711589050,14.15766965,159.27,159.21,31.08]
[1749711589345,13.87334651,159.26,159.22,13.87334651]
[1749711595337,8.87871923,159.26,159.22,8.87871923]
[1749711596731,8.87871923,159.26,159.21,31.08]
[1749711596932,8.87871923,159.26,159.22,8.87871923]
[1749711597336,8.83985058,159.26,159.22,8.87871923]
[1749711597537,8.68378707,159.26,159.22,8.87871923]
[1749711599354,13.37182731,159.26,159.22,8.87871923]
[1749711601758,4.68804024,159.26,159.23,8.87871923]
[1749711602136,4.68804024,159.26,159.24,8.87871923]
[1749711602341,13.56675947,159.28,159.24,8.87871923]
[1749711602545,4.68804024,159.27,159.24,8.87871923]
[1749711602749,4.68804024,159.26,159.24,8.87871923]
[1749711602950,4.68804024,159.27,159.23,8.87871923]
[1749711603254,13.56675947,159.26,159.21,5.48]
[1749711603557,8.87871923,159.24,159.21,5.48]
[1749711604134,8.87871923,159.23,159.21,5.48]
[1749711605033,0.28432314,159.24,159.21,5.48]
[1749711605233,8.87871923,159.23,159.21,5.48]
[1749711606332,13.56817966,159.23,159.21,5.48]
[1749711606661,8.87871923,159.23,159.21,5.48]
[1749711606969,0.28432314,159.24,159.21,5.48]
[1749711607142,13.56878114,159.23,159.21,5.48]
[1749711607460,8.87871923,159.22,159.21,5.48]
[1749711607756,13.56826044,159.23,159.21,5.48]
[1749711607957,13.56872751,159.23,159.21,5.48]
[1749711608263,4.6899975,159.23,159.21,5.48]
[1749711608641,9.16304237,159.24,159.21,5.48]
[1749711608841,4.69011054,159.23,159.21,31.06]
[1749711609156,4.69011054,159.26,159.22,8.87871923]
[1749711609345,9.16304237,159.29,159.25,8.87871923]
[1749711609546,13.56829883,159.28,159.23,8.87871923]
[1749711609734,13.56829883,159.28,159.21,31.06]
[1749711609735,4.6895796,159.27,159.24,8.87871923]
[1749711609938,4.6895796,159.26,159.24,8.87871923]
[1749711610137,4.6895796,159.27,159.25,8.87871923]
[1749711610472,9.16304237,159.29,159.25,8.87871923]
[1749711610642,4.69129501,159.28,159.24,8.87871923]
[1749711610960,4.69129501,159.27,159.24,8.87871923]
[1749711611158,9.16304237,159.29,159.24,8.87871923]
[1749711611343,18.56149525,159.28,159.24,13.8702169]
[1749711611552,4.69127835,159.27,159.24,13.8702169]
[1749711611848,4.69127835,159.26,159.24,13.8702169]
[1749711612165,13.8702169,159.28,159.24,13.8702169]
[1749711612458,4.69233736,159.27,159.24,13.8702169]
[1749711612762,4.69233736,159.26,159.24,13.8702169]
[1749711612947,13.8702169,159.28,159.24,13.8702169]
[1749711613148,4.69349421,159.27,159.24,13.8702169]
[1749711613359,4.69349421,159.26,159.24,13.8702169]
[1749711613564,13.8702169,159.25,159.16,1.5105]
[1749711613763,13.8702169,159.22,159.18,13.8702169]
[1749711614261,13.8702169,159.23,159.19,13.8702169]
[1749711614559,14.15454004,159.24,159.19,13.8702169]
[1749711614864,18.56695442,159.23,159.19,13.8702169]
[1749711615163,13.8702169,159.23,159.19,13.8702169]
[1749711615864,1.6175,159.26,159.21,13.8702169]
[1749711616049,19.83270318,159.3,159.24,13.8702169]
[1749711616050,4.69677477,159.25,159.24,13.8702169]
[1749711616745,4.69677477,159.25,159.23,13.8702169]
[1749711616947,13.8702169,159.27,159.23,13.8702169]
[1749711617151,4.69649959,159.26,159.23,13.8702169]
[1749711617449,4.69649959,159.25,159.23,13.8702169]
[1749711617645,13.8702169,159.27,159.23,13.8702169]
[1749711617851,4.69681798,159.26,159.23,13.8702169]
[1749711618149,4.69681798,159.25,159.23,13.8702169]
[1749711618354,13.8702169,159.27,159.23,13.8702169]
[1749711618558,4.69693394,159.26,159.23,13.8702169]
[1749711618763,4.69685857,159.25,159.23,13.8702169]
[1749711618961,13.8702169,159.27,159.23,13.8702169]
[1749711619172,18.56707472,159.26,159.22,19.3302169]
[1749711619349,4.69685782,159.25,159.22,19.3302169]
[1749711619548,13.8702169,159.27,159.22,19.3302169]
[1749711619768,4.69688911,159.26,159.22,19.3302169]
[1749711619963,4.69688911,159.25,159.22,19.3302169]
[1749711620161,13.8702169,159.27,159.22,19.3302169]
[1749711620361,4.69689726,159.26,159.22,19.3302169]
[1749711620563,18.56711416,159.25,159.22,5.46]
[1749711620863,18.56711416,159.24,159.22,5.46]
[1749711621071,13.8702169,159.24,159.22,5.46]
[1749711623156,13.8702169,159.25,159.22,5.46]
[1749711623352,13.8702169,159.27,159.22,19.3302169]
[1749711623557,0.28432314,159.25,159.22,19.3302169]
[1749711625466,0.28432314,159.27,159.23,13.8702169]
[1749711625772,4.69692187,159.26,159.23,13.8702169]
[1749711625969,4.69692187,159.25,159.23,13.8702169]
[1749711626172,13.8702169,159.27,159.23,13.8702169]
[1749711626366,4.69683954,159.26,159.23,13.8702169]
[1749711626564,4.69683954,159.25,159.23,13.8702169]
[1749711626772,13.8702169,159.27,159.23,13.8702169]
[1749711626974,4.6969013,159.26,159.23,13.8702169]
[1749711627316,4.6969013,159.25,159.23,13.8702169]
[1749711627450,13.8702169,159.27,159.23,13.8702169]
[1749711627651,4.69701213,159.26,159.23,13.8702169]
[1749711627961,4.69701213,159.25,159.23,13.8702169]
[1749711628164,13.8702169,159.27,159.23,13.8702169]
[1749711628473,4.6969487,159.26,159.23,13.8702169]
[1749711628680,4.6969487,159.25,159.23,13.8702169]
[1749711628850,13.8702169,159.27,159.23,13.8702169]
[1749711629048,4.69699833,159.26,159.24,13.8702169]
[1749711629263,4.69699833,159.25,159.24,13.8702169]
[1749711630770,4.69699833,159.25,159.23,13.8702169]
[1749711630974,13.8702169,159.27,159.23,13.8702169]
[1749711631158,4.69712383,159.26,159.22,5.46]
[1749711631363,4.98144697,159.25,159.22,5.46]
[1749711631568,13.8702169,159.27,159.23,13.8702169]
[1749711631759,0.28432314,159.28,159.24,13.8702169]
[1749711631760,4.69715183,159.26,159.24,13.8702169]
[1749711632074,4.69715183,159.25,159.24,13.8702169]
[1749711633573,4.69715183,159.25,159.23,13.8702169]
[1749711633762,14.15454004,159.28,159.23,13.8702169]
[1749711633967,4.69727337,159.27,159.23,13.8702169]
[1749711634163,4.69727337,159.26,159.23,13.8702169]
[1749711634387,4.69727337,159.25,159.23,13.8702169]
[1749711634688,14.15454004,159.28,159.23,13.8702169]
[1749711634869,4.69733005,159.27,159.23,13.8702169]
[1749711635164,4.69733005,159.26,159.23,13.8702169]
[1749711635362,4.69733005,159.25,159.23,13.8702169]
[1749711635574,14.15454004,159.28,159.23,13.8702169]
[1749711635782,4.69738006,159.27,159.24,13.8702169]
[1749711635987,27.5944,159.3,159.26,13.8702169]
[1749711636296,4.6968278,159.29,159.27,13.8702169]
[1749711636461,154.97101357,159.32,159.28,13.8702169]
[1749711636664,4.69578138,159.31,159.29,13.8702169]
[1749711636890,4.69578138,159.3,159.29,13.8702169]
[1749711637184,149.1,159.32,159.29,13.8702169]
[1749711637491,149.1,159.32,159.31,13.8702169]
[1749711637667,4.69216288,159.32,159.3,13.8702169]
[1749711637872,0.28432314,159.34,159.3,13.8702169]
[1749711638194,4.69204017,159.33,159.3,13.8702169]
[1749711638363,4.69204017,159.32,159.3,13.8702169]
[1749711638581,40.15454004,159.34,159.3,13.8702169]
[1749711638787,4.68952386,159.33,159.3,13.8702169]
[1749711638984,4.68952386,159.32,159.3,13.8702169]
[1749711639201,40.15454004,159.34,159.3,13.8702169]
[1749711639501,4.68952386,159.33,159.3,13.8702169]
[1749711639709,4.68952386,159.32,159.3,13.8702169]
[1749711639892,4.68952386,159.33,159.3,13.8702169]
[1749711640092,4.68952386,159.32,159.3,13.8702169]
[1749711640297,4.68952386,159.33,159.3,13.8702169]
[1749711640497,40.15454004,159.34,159.3,13.8702169]
[1749711640702,4.68567674,159.33,159.3,13.8702169]
[1749711640904,40.15454004,159.34,159.3,13.8702169]
[1749711641203,4.68567674,159.33,159.3,13.8702169]
[1749711641405,40.15454004,159.34,159.24,44.64964886]
[1749711641584,13.8702169,159.3,159.24,51.56]
[1749711641900,13.8702169,159.3,159.26,13.8702169]
[1749711642113,13.8702169,159.3,159.24,25.56]
[1749711642278,13.8702169,159.3,159.26,13.8702169]
[1749711642475,13.8702169,159.28,159.22,5.46]
[1749711642694,13.8702169,159.26,159.22,5.46]
[1749711642894,13.8702169,159.26,159.22,19.3302169]
[1749711643088,14.15454004,159.27,159.23,13.8702169]
[1749711643282,18.83897471,159.27,159.23,13.8702169]
[1749711643496,14.15454004,159.27,159.23,13.8702169]
[1749711643681,18.83897471,159.27,159.23,13.8702169]
[1749711644009,14.15454004,159.27,159.23,13.8702169]
[1749711644310,18.83897471,159.27,159.23,13.8702169]
[1749711644501,14.15454004,159.27,159.23,13.8702169]
[1749711644700,18.83897471,159.27,159.23,13.8702169]
[1749711645006,14.15454004,159.27,159.23,13.8702169]
[1749711645183,18.83897471,159.27,159.23,13.8702169]
[1749711645385,0.28432314,159.27,159.24,13.8702169]
[1749711645606,18.83897471,159.27,159.23,13.8702169]
[1749711645791,14.15454004,159.27,159.23,13.8702169]
[1749711646090,18.83897471,159.27,159.23,13.8702169]
[1749711646295,14.15454004,159.27,159.23,13.8702169]
[1749711646511,18.8400724,159.27,159.23,13.8702169]
[1749711646716,18.8400724,159.27,159.22,5.46]
[1749711646717,0.28432314,159.27,159.24,13.8702169]
[1749711649717,4.97026424,159.27,159.24,13.8702169]
[1749711651489,4.6859411,159.27,159.24,13.8702169]
[1749711651694,13.8702169,159.28,159.23,13.8702169]
[1749711652012,4.68710641,159.27,159.23,13.8702169]
[1749711652209,4.68710641,159.27,159.22,5.46]
[1749711652511,4.68710641,159.27,159.23,13.8702169]
[1749711652696,18.55732331,159.27,159.23,13.8702169]
[1749711652898,13.8702169,159.27,159.22,5.46]
[1749711653096,18.55732331,159.27,159.23,13.8702169]
[1749711653290,13.8702169,159.27,159.23,13.8702169]
[1749711653491,18.55732331,159.27,159.23,13.8702169]
[1749711653697,13.8702169,159.27,159.22,19.3302169]
[1749711653900,18.55732331,159.27,159.22,19.3302169]
[1749711654210,4.68873752,159.26,159.22,19.3302169]
[1749711654584,13.8702169,159.24,159.22,5.46]
[1749711654801,0.28432314,159.26,159.22,19.3302169]
[1749711654986,0.28432314,159.26,159.23,13.8702169]
[1749711655304,0.28432314,159.28,159.25,13.8702169]
[1749711655502,4.6884671,159.27,159.25,13.8702169]
[1749711655802,0.28432314,159.28,159.25,13.8702169]
[1749711656104,4.68843391,159.27,159.25,13.8702169]
[1749711656313,0.28432314,159.28,159.25,13.8702169]
[1749711656504,4.68836486,159.27,159.24,13.8702169]
[1749711659400,0.28432314,159.28,159.24,13.8702169]
[1749711659696,4.68869928,159.27,159.24,13.8702169]
[1749711659901,0.28432314,159.28,159.24,13.8702169]
[1749711660206,4.68869928,159.27,159.24,13.8702169]
[1749711660409,0.28432314,159.28,159.24,13.8702169]
[1749711660716,4.68868554,159.28,159.27,13.8702169]
[1749711661588,149.1,159.29,159.27,13.8702169]
[1749711664113,0.28432314,159.3,159.26,5.46]
[1749711664289,4.68832938,159.29,159.27,13.8702169]
[1749711664492,0.28432314,159.3,159.27,13.8702169]
[1749711664687,4.68830856,159.29,159.27,13.8702169]
[1749711664907,0.28432314,159.3,159.27,13.8702169]
[1749711665102,4.68833334,159.29,159.27,13.8702169]
[1749711665308,0.28432314,159.3,159.27,13.8702169]
[1749711665506,4.6883414,159.29,159.27,13.8702169]
[1749711665820,0.28432314,159.3,159.27,13.8702169]
[1749711666018,4.6883414,159.29,159.26,19.3302169]
[1749711666312,14.15454004,159.3,159.26,19.3302169]
[1749711666514,4.68866493,159.29,159.26,19.3302169]
[1749711666708,14.15454004,159.3,159.26,19.3302169]
[1749711666909,4.68866493,159.29,159.26,19.3302169]
[1749711667214,14.15454004,159.3,159.26,19.3302169]
[1749711667522,4.68901303,159.29,159.26,19.3302169]
[1749711667707,0.28432314,159.3,159.26,19.3302169]
[1749711667902,4.68901303,159.29,159.26,19.3302169]
[1749711668105,0.28432314,159.3,159.26,19.3302169]
[1749711668314,4.68903707,159.29,159.26,19.3302169]
[1749711668516,0.28432314,159.3,159.26,19.3302169]
[1749711668720,4.68916211,159.29,159.26,19.3302169]
[1749711668922,0.28432314,159.3,159.26,19.3302169]
[1749711669123,4.68916211,159.29,159.26,19.3302169]
[1749711669422,0.28432314,159.3,159.26,19.3302169]
[1749711669623,4.68922646,159.29,159.26,19.3302169]
[1749711669826,0.28432314,159.3,159.26,19.3302169]
[1749711670012,0.28432314,159.3,159.27,13.8702169]
[1749711670013,4.68922721,159.29,159.27,13.8702169]
[1749711670214,0.28432314,159.3,159.27,13.8702169]
[1749711670421,4.68934273,159.29,159.27,13.8702169]
[1749711670731,0.28432314,159.3,159.27,13.8702169]
[1749711670929,4.68934362,159.29,159.27,13.8702169]
[1749711671227,0.28432314,159.3,159.27,13.8702169]
[1749711671406,4.68945051,159.29,159.27,13.8702169]
[1749711671612,0.28432314,159.3,159.27,13.8702169]
[1749711671926,4.68945126,159.29,159.27,13.8702169]
[1749711672129,0.28432314,159.3,159.27,13.8702169]
[1749711672307,4.68960013,159.29,159.27,13.8702169]
[1749711672507,0.28432314,159.3,159.27,13.8702169]
[1749711672703,4.68958356,159.29,159.27,13.8702169]
[1749711672903,0.28432314,159.3,159.27,13.8702169]
[1749711673099,4.68958431,159.29,159.27,13.8702169]
[1749711673305,0.28432314,159.3,159.27,13.8702169]
[1749711673515,4.68973936,159.29,159.27,13.8702169]
[1749711673716,26.0,159.32,159.28,13.8702169]
[1749711673928,4.97380203,159.31,159.29,13.8702169]
[1749711674230,4.68947889,159.3,159.26,5.46]
[1749711674438,154.97101357,159.34,159.26,5.46]
[1749711674439,4.68898537,159.32,159.29,13.8702169]
[1749711674603,0.28432314,159.33,159.31,13.8702169]
[1749711674804,4.68889703,159.32,159.31,13.8702169]
[1749711677424,149.1,159.34,159.31,13.8702169]
[1749711677619,4.68654695,159.33,159.32,13.8702169]
[1749711678136,4.68654695,159.34,159.32,13.8702169]
[1749711678319,4.68654695,159.33,159.32,13.8702169]
[1749711678527,4.68654695,159.34,159.32,13.8702169]
[1749711678732,4.68654695,159.33,159.28,39.4302169]
[1749711678906,1.6362,159.37,159.32,13.8702169]
[1749711679104,175.1,159.38,159.28,73.1515169]
[1749711679105,4.68498283,159.36,159.35,13.8702169]
[1749711679526,4.68498283,159.37,159.35,13.8702169]
[1749711679718,0.28432314,159.38,159.35,13.8702169]
[1749711679919,4.68286124,159.37,159.35,13.8702169]
[1749711680114,4.68286124,159.38,159.35,13.8702169]
[1749711680315,4.68286124,159.37,159.35,13.8702169]
[1749711680636,4.68286124,159.38,159.34,13.8702169]
[1749711680840,14.01237847,159.36,159.32,13.8702169]
[1749711681019,0.14216157,159.35,159.32,19.3302169]
[1749711687413,0.14216157,159.35,159.33,13.8702169]
[1749711688625,26.0,159.37,159.33,13.8702169]
[1749711688831,30.6735084,159.37,159.34,13.8702169]
[1749711689031,26.0,159.37,159.34,13.8702169]
[1749711689738,0.28432314,159.37,159.34,13.8702169]
[1749711689926,30.6735084,159.39,159.32,5.46]
[1749711690132,0.28432314,159.38,159.35,13.8702169]
[1749711690433,30.6735084,159.39,159.36,13.8702169]
[1749711690611,1.6352,159.41,159.37,13.8702169]
[1749711690612,0.28432314,159.4,159.37,13.8702169]
[1749711691018,20.1789253,159.41,159.37,13.8702169]
[1749711691542,0.28432314,159.4,159.37,13.8702169]
[1749711692239,0.28432314,159.4,159.38,13.8702169]
[1749711692436,0.14216157,159.41,159.38,13.8702169]
[1749711692738,4.81061191,159.41,159.38,13.8702169]
[1749711694337,0.28432314,159.41,159.38,13.8702169]
[1749711695239,0.28432314,159.41,159.39,13.8702169]
[1749711696643,26.0,159.43,159.4,13.8702169]
[1749711696939,13.8702169,159.41,159.36,13.8702169]
[1749711697243,13.8702169,159.4,159.36,13.8702169]
[1749711698721,14.15454004,159.41,159.36,13.8702169]
[1749711699234,14.15454004,159.41,159.37,13.8702169]
[1749711700544,14.15454004,159.42,159.37,13.8702169]
[1749711700716,26.0,159.43,159.4,13.8702169]
[1749711700916,39.8702169,159.43,159.39,13.8702169]
[1749711701318,0.28432314,159.42,159.39,13.8702169]
[1749711705122,0.28432314,159.43,159.4,13.8702169]
[1749711705725,0.28432314,159.43,159.35,7.8143]
[1749711705924,14.15454004,159.43,159.38,13.8702169]
[1749711706736,0.28432314,159.43,159.39,13.8702169]
[1749711706933,14.15454004,159.43,159.39,13.8702169]
[1749711707741,13.8702169,159.42,159.38,13.8702169]
[1749711709742,0.28432314,159.44,159.38,13.8702169]
[1749711709938,0.28432314,159.42,159.39,13.8702169]
[1749711710625,0.28432314,159.42,159.35,1.534]
[1749711710626,41.4619169,159.45,159.4,13.8702169]
[1749711710950,0.28432314,159.44,159.4,13.8702169]
[1749711713634,14.15454004,159.44,159.4,13.8702169]
[1749711714350,13.8702169,159.43,159.39,13.8702169]
[1749711714726,14.15454004,159.44,159.4,13.8702169]
[1749711715139,14.15454004,159.44,159.39,13.8702169]
[1749711715340,13.8702169,159.43,159.39,13.8702169]
[1749711715823,13.8702169,159.4,159.36,13.8702169]
[1749711716023,0.28432314,159.42,159.31,8.2814]
[1749711716024,13.8702169,159.37,159.31,8.2814]
[1749711716256,13.8702169,159.37,159.33,13.8702169]
[1749711716452,0.28432314,159.39,159.33,13.8702169]
[1749711716764,13.8702169,159.37,159.33,13.8702169]
[1749711720556,0.28432314,159.37,159.34,13.8702169]
[1749711722368,14.15454004,159.37,159.3,25.52]
[1749711722538,13.8702169,159.35,159.29,26.0]
[1749711722735,13.8702169,159.35,159.31,13.8702169]
[1749711723639,4.66525914,159.36,159.33,13.8702169]
[1749711724133,4.66525914,159.36,159.32,19.3302169]
[1749711724353,18.53547604,159.36,159.32,19.3302169]
[1749711725735,4.66525914,159.36,159.32,19.3302169]
[1749711725964,14.15454004,159.37,159.32,19.3302169]
[1749711726263,18.81979918,159.37,159.32,19.3302169]
[1749711726458,14.15454004,159.37,159.32,19.3302169]
[1749711726645,18.81979918,159.37,159.32,19.3302169]
[1749711726847,13.8702169,159.36,159.32,5.46]
[1749711727037,18.53547604,159.36,159.32,19.3302169]
[1749711728066,4.66525914,159.36,159.32,19.3302169]
[1749711728444,14.15454004,159.37,159.32,19.3302169]
[1749711728655,18.81979918,159.37,159.32,19.3302169]
[1749711728856,14.15454004,159.37,159.32,19.3302169]
[1749711729067,18.81979918,159.37,159.32,19.3302169]
[1749711729274,14.15454004,159.37,159.32,19.3302169]
[1749711729449,18.81979918,159.37,159.32,19.3302169]
[1749711729653,14.15454004,159.37,159.32,19.3302169]
[1749711729953,18.81979918,159.37,159.32,19.3302169]
[1749711730149,14.15454004,159.37,159.32,19.3302169]
[1749711730460,13.8702169,159.36,159.32,19.3302169]
[1749711732456,13.8702169,159.36,159.32,5.46]
[1749711732763,13.8702169,159.36,159.32,19.3302169]
[1749711734765,26.0,159.36,159.32,5.46]
[1749711735064,26.0,159.36,159.33,13.8702169]
[1749711735558,26.28432314,159.37,159.33,13.8702169]
[1749711735752,30.96612213,159.37,159.33,13.8702169]
[1749711736748,30.46612213,159.37,159.33,13.8702169]
[1749711738370,30.46534992,159.37,159.33,13.8702169]
[1749711738555,25.78432314,159.37,159.33,13.8702169]
[1749711739250,30.46534992,159.37,159.33,13.8702169]
[1749711739571,44.33556682,159.37,159.33,13.8702169]
[1749711739883,25.78432314,159.37,159.33,13.8702169]
[1749711740371,26.0,159.36,159.33,13.8702169]
[1749711740668,13.8702169,159.36,159.32,5.46]
[1749711740873,13.8702169,159.35,159.32,5.46]
[1749711741770,4.96546098,159.36,159.32,5.46]
[1749711742068,13.8702169,159.35,159.32,5.46]
[1749711743263,4.96546098,159.36,159.32,5.46]
[1749711743574,13.8702169,159.35,159.32,5.46]
[1749711745779,4.96546098,159.36,159.32,5.46]
[1749711745951,13.8702169,159.34,159.32,5.46]
[1749711749766,13.8702169,159.33,159.32,5.46]
[1749711752572,13.8702169,159.33,159.29,5.44]
[1749711754980,13.8702169,159.32,159.29,5.44]
[1749711755178,13.8702169,159.3,159.29,5.44]
[1749711755356,14.15454004,159.3,159.29,5.44]
[1749711755555,18.83567788,159.3,159.29,5.44]
[1749711760070,13.8702169,159.32,159.29,5.44]
[1749711760385,4.68172513,159.31,159.29,5.44]
[1749711760569,4.68172513,159.3,159.29,5.44]
[1749711760879,4.68172513,159.31,159.29,5.44]
[1749711765081,30.68172513,159.31,159.29,5.44]
[1749711765273,18.55194203,159.32,159.29,5.44]
[1749711765472,4.68172513,159.31,159.29,5.44]
[1749711765680,18.55194203,159.31,159.29,5.44]
[1749711765870,13.8702169,159.3,159.29,5.44]
[1749711767681,4.68172513,159.31,159.29,5.44]
[1749711767887,13.8702169,159.3,159.29,5.44]
[1749711769180,14.15454004,159.3,159.29,5.44]
[1749711769389,18.83626517,159.3,159.29,5.44]
[1749711769584,25.11372907,159.3,159.29,5.44]
[1749711769779,14.15454004,159.3,159.29,5.44]
[1749711771678,26.0,159.3,159.29,5.44]
[1749711771879,26.0,159.31,159.29,5.44]
[1749711772287,4.68172513,159.32,159.29,19.3102169]
[1749711772484,26.0,159.32,159.29,19.3102169]
[1749711772799,30.68172513,159.32,159.29,19.3102169]
[1749711775295,26.0,159.32,159.29,19.3102169]
[1749711775482,30.68172513,159.32,159.29,19.3102169]
[1749711775987,26.0,159.32,159.29,19.3102169]
[1749711776180,30.68172513,159.32,159.29,19.3102169]
[1749711777425,26.0,159.32,159.29,19.3102169]
[1749711777701,13.8702169,159.33,159.29,19.3102169]
[1749711778076,18.54945092,159.33,159.29,19.3102169]
[1749711778281,13.8702169,159.33,159.29,19.3102169]
[1749711778480,18.54945092,159.33,159.29,19.3102169]
[1749711778680,13.8702169,159.33,159.29,19.3102169]
[1749711778881,4.67923402,159.33,159.29,19.3102169]
[1749711779086,4.67923402,159.34,159.31,13.8702169]
[1749711779893,4.67923402,159.34,159.3,13.8702169]
[1749711782282,5.85128348,159.39,159.33,13.8702169]
[1749711782479,13.8702169,159.37,159.32,13.8702169]
[1749711782782,13.8702169,159.34,159.29,19.3102169]
[1749711782992,13.8702169,159.34,159.3,13.8702169]
[1749711783286,4.68135305,159.36,159.33,13.8702169]
[1749711783490,14.15454004,159.39,159.34,13.8702169]
[1749711783686,4.68135444,159.38,159.34,13.8702169]
[1749711783902,18.55157134,159.39,159.35,13.8702169]
[1749711784115,4.68135444,159.38,159.35,13.8702169]
[1749711784481,13.8702169,159.39,159.34,13.8702169]
[1749711784895,18.55054482,159.39,159.34,13.8702169]
[1749711785501,18.55054482,159.39,159.35,13.8702169]
[1749711785713,4.68032792,159.39,159.36,13.8702169]
[1749711785883,18.55054482,159.39,159.35,13.8702169]
[1749711786207,13.8702169,159.38,159.34,13.8702169]
[1749711787000,18.55054482,159.39,159.34,13.8702169]
[1749711787503,18.55054482,159.38,159.33,13.8702169]
[1749711787816,13.8702169,159.36,159.32,13.8702169]
[1749711787991,13.8702169,159.35,159.3,39.3902169]
[1749711788313,13.8702169,159.36,159.32,13.8702169]